Workbook

Sheet ССЫЛКИ
A1: январь | B1: 15 | D1: ПРАЗДНИКИ
A2: февраль | B2: 19 | D2: 2015-01-01
A3: март | B3: 21 | D3: 2015-01-02
A4: апрель | B4: 22 | D4: 2015-01-05
A5: май | B5: 18 | D5: 2015-01-06
A6: июнь | B6: 21 | D6: 2015-01-07
A7: июль | B7: 23 | D7: 2015-01-08
A8: август | B8: 21 | D8: 2015-02-23
A9: сентябрь | B9: 22 | D9: 2015-03-09
A10: октябрь | B10: 22 | D10: 2015-01-08
A11: ноябрь | B11: 20 | D11: 2015-01-09
A12: декабрь | B12: 23 | D12: 2015-01-08
D13: 2015-02-23
D14: 2015-03-08
D15: 2015-05-01
D16: 2015-05-09
D17: 2015-06-23
D18: 2015-11-04

Sheet СПРАВОЧНИК
A1: № | B1: Итоги | C1: ОТДЕЛЕНИЕ | D1: ДОЛЖНОСТЬ | E1: ФИО | F1: ЗАНЯТОСТЬ | G1: ПО ФАКТУ | H1: ОКЛАД С ОБЪЕМОМ РАБОТ | I1: Доплата за ВУТ | J1: ОКЛАД с ВУТ
A2: 1 | C2: Приемное | D2: Медицинская сестра | E2: ФИО 1 | F2: Осн. | G2: 1 | H2: 1000 | I2: 0 | J2: 10000
A3: 2 | C3: Хирургия (с пер.) | D3: Операционная медицинская сестра | E3: ФИО 2 | F3: Осн. | G3: 1 | H3: 2000 | I3: 0 | J3: =H3+(H3*I3) -> 2000
A4: 3 | C4: Отдел МТО | D4: Водитель автомобиля | E4: ФИО 3 | F4: Осн. | G4: 1 | H4: 3000 | I4: 0 | J4: 3000
A5: 20 | C5: Отдел МТО | D5: Гардеробщик | E5: ФИО 4 | F5: Осн. | G5: 1 | H5: 4000 | I5: 0 | J5: 4000
A6: 151 | C6: Неврология | D6: Младшая медицинская сестра по уходу за больными | E6: ФИО 5 | F6: Осн. | G6: 1 | H6: 5000 | I6: 0 | J6: 5000
A7: 16 | C7: Отдел МТО | D7: Заведующий складом | E7: ФИО 6 | F7: Осн. | G7: 1 | H7: 6000 | I7: 0 | J7: 6000
A8: 98 | C8: Лаборат. отд. | D8: Лаборант | E8: ФИО 7 | F8: Осн. | G8: 1 | H8: 7000 | I8: 0 | J8: 7000
A9: 136 | C9: Хирургия (с пер.) | D9: Медицинская сестра перевязочной | E9: ФИО 8 | F9: Осн. | G9: 1 | H9: 8000 | I9: 0 | J9: 8000
A10: 234 | C10: Терапия (30 к.) | D10: Медицинская сестра палатная (постовая) | E10: ФИО 9 | F10: Осн. | G10: 1 | H10: 9000 | I10: 0 | J10: 9000
A11: 6 | C11: ФЭО | D11: Бухгалтер | E11: ФИО 10 | F11: Осн. | G11: 1 | H11: 10000 | I11: 0 | J11: 10000
A12: -222 | C12: Терапия (30 к.) | D12: Медицинская сестра палатная (постовая) | E12: ФИО 11 | F12: Осн. | G12: 1 | H12: 11000 | I12: 0 | J12: =H12+(H12*I12) -> 11000
A13: -450 | C13: ФЭО | D13: Бухгалтер | E13: ФИО 12 | F13: Осн. | G13: 1 | H13: 12000 | I13: 0 | J13: 12000
A14: -678 | C14: Терапия (30 к.) | D14: Медицинская сестра палатная (постовая) | E14: ФИО 13 | F14: Осн. | G14: 1 | H14: 13000 | I14: 0 | J14: 13000
A15: -906 | C15: ФЭО | D15: Бухгалтер | E15: ФИО 14 | F15: Осн. | G15: 1 | H15: 14000 | I15: 0 | J15: 14000
A16: -1134 | C16: Терапия (30 к.) | D16: Медицинская сестра палатная (постовая) | E16: ФИО 15 | F16: Осн. | G16: 1 | H16: 15000 | I16: 0 | J16: 15000
A17: -1362 | C17: ФЭО | D17: Бухгалтер | E17: ФИО 16 | F17: Осн. | G17: 1 | H17: 16000 | I17: 0 | J17: 16000
A18: -1590 | C18: Терапия (30 к.) | D18: Медицинская сестра палатная (постовая) | E18: ФИО 17 | F18: Осн. | G18: 1 | H18: 17000 | I18: 0 | J18: 17000
A19: -1818 | C19: ФЭО | D19: Бухгалтер | E19: ФИО 18 | F19: Осн. | G19: 1 | H19: 18000 | I19: 0 | J19: 18000
A20: -2046 | C20: Терапия (30 к.) | D20: Медицинская сестра палатная (постовая) | E20: ФИО 19 | F20: Осн. | G20: 1 | H20: 19000 | I20: 0 | J20: 19000
A21: -2274 | C21: ФЭО | D21: Бухгалтер | E21: ФИО 20 | F21: Осн. | G21: 1 | H21: 20000 | I21: 0 | J21: 20000
A22: -2502 | C22: Терапия (30 к.) | D22: Медицинская сестра палатная (постовая) | E22: ФИО 21 | F22: Осн. | G22: 1 | H22: 21000 | I22: 0 | J22: 21000
A23: -2730 | C23: ФЭО | D23: Бухгалтер | E23: ФИО 22 | F23: Осн. | G23: 1 | H23: 22000 | I23: 0 | J23: 22000
A24: -2958 | C24: Терапия (30 к.) | D24: Медицинская сестра палатная (постовая) | E24: ФИО 23 | F24: Осн. | G24: 1 | H24: 23000 | I24: 0 | J24: 23000
A25: -3186 | C25: ФЭО | D25: Бухгалтер | E25: ФИО 24 | F25: Осн. | G25: 1 | H25: 24000 | I25: 0 | J25: 24000
A26: -3414 | C26: Терапия (30 к.) | D26: Медицинская сестра палатная (постовая) | E26: ФИО 25 | F26: Осн. | G26: 1 | H26: 25000 | I26: 0 | J26: 25000
A27: -3642 | C27: ФЭО | D27: Бухгалтер | E27: ФИО 26 | F27: Осн. | G27: 1 | H27: 26000 | I27: 0 | J27: 26000
A28: -3870 | C28: Терапия (30 к.) | D28: Медицинская сестра палатная (постовая) | E28: ФИО 27 | F28: Осн. | G28: 1 | H28: 27000 | I28: 0 | J28: 27000
A29: -4098 | C29: ФЭО | D29: Бухгалтер | E29: ФИО 28 | F29: Осн. | G29: 1 | H29: 28000 | I29: 0 | J29: 28000
A30: -4326 | C30: Терапия (30 к.) | D30: Медицинская сестра палатная (постовая) | E30: ФИО 29 | F30: Осн. | G30: 1 | H30: 29000 | I30: 0 | J30: 29000
A31: -4554 | C31: ФЭО | D31: Бухгалтер | E31: ФИО 30 | F31: Осн. | G31: 1 | H31: 30000 | I31: 0 | J31: 30000
A32: -4782 | C32: Терапия (30 к.) | D32: Медицинская сестра палатная (постовая) | E32: ФИО 31 | F32: Осн. | G32: 1 | H32: 31000 | I32: 0 | J32: 31000

Sheet сводная
H1: Приложение к приказу № от "____" ___________ 2015г.
A3: № п/п | B3: СОТРУДНИК | C3: ДОЛЖНОСТЬ | D3: ОТДЕЛЕНИЕ | E3: ПЕРИОД | G3: ОБЪЕМ РАБОТЫ | H3: СУММА
B4: 2 | C4: 3 | E4: 4 | F4: 5 | G4: 7 | H4: 10
A5: =IF(B5="","",SUBTOTAL(3,B5)*(MAX(A$4:A4)+1)) -> 1 | B5: ФИО 1 | C5: =IF(B5="","",INDEX(МАССИВ,MATCH(B5,ФИО,0),3)) -> Медицинская сестра | D5: =IF(B5="","",INDEX(МАССИВ,MATCH(B5,ФИО,0),2)) -> Приемное | E5: 2014-12-12 | F5: 2015-01-31 | G5: 1 | H5: =IF(B5="","",ROUND(((IF(B5="","",INDEX(МАССИВ,MATCH(B5,ФИО,0),9)))*(IF(B5="","",MONTH(F5)-MONTH(E5)+1+(YEAR(F5)-YEAR(E5))*12))*G5/(IF(B5="","",NETWORKDAYS.INTL(EOMONTH(E5,-1)+1,EOMONTH(F5,0),1,ПРАЗДНИКИ)))*(IF(B5="","",NETWORKDAYS.INTL(E5,F5,1,ПРАЗДНИКИ)))),-2)) -> 15300
A6: =IF(B6="","",SUBTOTAL(3,B6)*(MAX(A$4:A5)+1)) -> 2 | B6: ФИО 2 | C6: Операционная медицинская сестра | D6: Хирургия (с пер.) | E6: 2015-02-01 | F6: 2015-02-28 | G6: 0.5 | H6: 1000
A7: =IF(B7="","",SUBTOTAL(3,B7)*(MAX(A$4:A6)+1)) -> 3 | B7: ФИО 3 | C7: Водитель автомобиля | D7: Отдел МТО | E7: 2015-03-01 | F7: 2015-03-31 | G7: 1 | H7: 3000
A8: =IF(B8="","",SUBTOTAL(3,B8)*(MAX(A$4:A7)+1)) -> 4 | B8: ФИО 4 | C8: Гардеробщик | D8: Отдел МТО | E8: 2015-01-01 | F8: 2015-02-28 | G8: 1 | H8: 8000
A9: =IF(B9="","",SUBTOTAL(3,B9)*(MAX(A$4:A8)+1)) -> 5 | B9: ФИО 5 | C9: Младшая медицинская сестра по уходу за больными | D9: Неврология | E9: 2015-01-01 | F9: 2015-01-31 | G9: 1 | H9: 5000
A10: =IF(B10="","",SUBTOTAL(3,B10)*(MAX(A$4:A9)+1)) -> 6 | B10: ФИО 6 | C10: Заведующий складом | D10: Отдел МТО | E10: 2015-01-16 | F10: 2015-01-31 | G10: 1 | H10: 4400
A11: =IF(B11="","",SUBTOTAL(3,B11)*(MAX(A$4:A10)+1)) -> 7 | B11: ФИО 7 | C11: Лаборант | D11: Лаборат. отд. | E11: 2015-01-16 | F11: 2015-02-28 | G11: 0.5 | H11: 6200
A12: =IF(B12="","",SUBTOTAL(3,B12)*(MAX(A$4:A11)+1)) -> 8 | B12: ФИО 8 | C12: Медицинская сестра перевязочной | D12: Хирургия (с пер.) | E12: 2015-01-16 | F12: 2015-03-31 | G12: 1 | H12: 22300
A13: =IF(B13="","",SUBTOTAL(3,B13)*(MAX(A$4:A12)+1)) -> 9 | B13: ФИО 9 | C13: Медицинская сестра палатная (постовая) | D13: Терапия (30 к.) | E13: 2015-01-16 | F13: 2015-02-15 | G13: 1 | H13: 11100
A14: =IF(B14="","",SUBTOTAL(3,B14)*(MAX(A$4:A13)+1)) -> 10 | B14: ФИО 10 | C14: Бухгалтер | D14: ФЭО | E14: 2015-01-16 | F14: 2015-02-16 | G14: 1 | H14: 12900
A15: =IF(B15="","",SUBTOTAL(3,B15)*(MAX(A$4:A14)+1)) -> 
A16: =IF(B16="","",SUBTOTAL(3,B16)*(MAX(A$4:A15)+1)) -> 11 | B16: ФИО 9 | C16: Медицинская сестра палатная (постовая) | D16: Терапия (30 к.) | E16: 2015-01-16 | F16: 2015-03-14 | G16: 0.5 | H16: 9600
A17: =IF(B17="","",SUBTOTAL(3,B17)*(MAX(A$4:A16)+1)) -> 
A18: =IF(B18="","",SUBTOTAL(3,B18)*(MAX(A$4:A17)+1)) -> 
A19: =IF(B19="","",SUBTOTAL(3,B19)*(MAX(A$4:A18)+1)) -> 
A20: =IF(B20="","",SUBTOTAL(3,B20)*(MAX(A$4:A19)+1)) -> 
H21: =SUM(H5:H20) -> 98800
A22: СУММА ПРОПИСЬЮ: | C22: =Пропись(H21) -> Девяносто восемь тысяч восемьсот рублей

Sheet развернутая
L1: Приложение к приказу № от "____" ___________ 2015г.
A3: № п/п | B3: СОТРУДНИК | C3: ДОЛЖНОСТЬ | D3: ОТДЕЛЕНИЕ | E3: ПЕРИОД ВРИО | G3: РАСЧЕТНАЯ СУММА ЗА 1 полный МЕСЯЦ | H3: КОЛ-ВО МЕСЯЦЕВ | I3: ОБЪЕМ РАБОТЫ | J3: ПО ГРАФИКУ | K3: ОТРАБОТАНО | L3: СУММА
B4: 2 | C4: 3 | E4: 4 | F4: 5 | G4: 6 | I4: 7 | J4: 8 | K4: 9 | L4: 10
A5: =IF(B5="","",SUBTOTAL(3,B5)*(MAX(A$4:A4)+1)) -> 1 | B5: ФИО 1 | C5: =IF(B5="","",INDEX(МАССИВ,MATCH(B5,ФИО,0),3)) -> Медицинская сестра | D5: =IF(B5="","",INDEX(МАССИВ,MATCH(B5,ФИО,0),2)) -> Приемное | E5: 2015-01-01 | F5: 2015-01-31 | G5: =IF(B5="","",INDEX(МАССИВ,MATCH(B5,ФИО,0),9)) -> 10000 | H5: =IF(B5="","",MONTH(F5)-MONTH(E5)+1+(YEAR(F5)-YEAR(E5))*12) -> 1 | I5: 1 | J5: =IF(B5="","",NETWORKDAYS.INTL(EOMONTH(E5,-1)+1,EOMONTH(F5,0),1,ПРАЗДНИКИ)) -> 15 | K5: =IF(B5="","",NETWORKDAYS.INTL(E5,F5,1,ПРАЗДНИКИ)) -> 15 | L5: =IF(B5="","",((((G5*H5)*I5)/J5)*K5)) -> 10000 | N5: =G5*H5 -> 10000 | O5: =N5*I5 -> 10000 | P5: =O5/J5 -> 666.6666667 | Q5: =P5*K5 -> 10000
A6: =IF(B6="","",SUBTOTAL(3,B6)*(MAX(A$4:A5)+1)) -> 2 | B6: ФИО 1 | C6: Медицинская сестра | D6: Приемное | E6: 2015-02-01 | F6: 2015-02-28 | G6: 10000 | H6: =IF(B6="","",MONTH(F6)-MONTH(E6)+1+(YEAR(F6)-YEAR(E6))*12) -> 1 | I6: 1 | J6: 19 | K6: 19 | L6: =IF(B6="","",((((G6*H6)*I6)/J6)*K6)) -> 10000 | N6: 10000 | O6: 10000 | P6: =O6/J6 -> 526.3157895 | Q6: 10000
A7: =IF(B7="","",SUBTOTAL(3,B7)*(MAX(A$4:A6)+1)) -> 3 | B7: ФИО 1 | C7: Медицинская сестра | D7: Приемное | E7: 2015-03-01 | F7: 2015-03-31 | G7: 10000 | H7: 1 | I7: 1 | J7: 21 | K7: 21 | L7: =IF(B7="","",((((G7*H7)*I7)/J7)*K7)) -> 10000 | N7: =G7*H7 -> 10000 | O7: =N7*I7 -> 10000 | P7: =O7/J7 -> 476.1904762 | Q7: =P7*K7 -> 10000
A8: =IF(B8="","",SUBTOTAL(3,B8)*(MAX(A$4:A7)+1)) -> 4 | B8: ФИО 1 | C8: =IF(B8="","",INDEX(МАССИВ,MATCH(B8,ФИО,0),3)) -> Медицинская сестра | D8: =IF(B8="","",INDEX(МАССИВ,MATCH(B8,ФИО,0),2)) -> Приемное | E8: 2015-01-01 | F8: 2015-03-31 | G8: =IF(B8="","",INDEX(МАССИВ,MATCH(B8,ФИО,0),9)) -> 10000 | H8: 3 | I8: 1 | J8: =IF(B8="","",NETWORKDAYS.INTL(EOMONTH(E8,-1)+1,EOMONTH(F8,0),1,ПРАЗДНИКИ)) -> 55 | K8: =IF(B8="","",NETWORKDAYS.INTL(E8,F8,1,ПРАЗДНИКИ)) -> 55 | L8: 30000 | N8: =G8*H8 -> 30000 | O8: =N8*I8 -> 30000 | P8: =O8/J8 -> 545.4545455 | Q8: =P8*K8 -> 30000
A9: =IF(B9="","",SUBTOTAL(3,B9)*(MAX(A$4:A8)+1)) -> 5 | B9: ФИО 5 | C9: Младшая медицинская сестра по уходу за больными | D9: Неврология | E9: 2015-01-01 | F9: 2015-01-31 | G9: 5000 | H9: 1 | I9: 1 | J9: 15 | K9: 15 | L9: =IF(B9="","",ROUND((G9*H9*I9/J9*K9),-2)) -> 5000
A10: =IF(B10="","",SUBTOTAL(3,B10)*(MAX(A$4:A9)+1)) -> 6 | B10: ФИО 6 | C10: Заведующий складом | D10: Отдел МТО | E10: 2015-01-16 | F10: 2015-01-31 | G10: 6000 | H10: 1 | I10: 1 | J10: 15 | K10: 11 | L10: =IF(B10="","",ROUND((G10*H10*I10/J10*K10),-2)) -> 4400
A11: =IF(B11="","",SUBTOTAL(3,B11)*(MAX(A$4:A10)+1)) -> 7 | B11: ФИО 7 | C11: Лаборант | D11: Лаборат. отд. | E11: 2015-01-16 | F11: 2015-02-28 | G11: 7000 | H11: 2 | I11: 1 | J11: 34 | K11: 30 | L11: 12400
A12: =IF(B12="","",SUBTOTAL(3,B12)*(MAX(A$4:A11)+1)) -> 8 | B12: ФИО 8 | C12: Медицинская сестра перевязочной | D12: Хирургия (с пер.) | E12: 2015-01-16 | F12: 2015-03-31 | G12: 8000 | H12: 3 | I12: 1 | J12: 55 | K12: 51 | L12: 22300
A13: =IF(B13="","",SUBTOTAL(3,B13)*(MAX(A$4:A12)+1)) -> 9 | B13: ФИО 9 | C13: Медицинская сестра палатная (постовая) | D13: Терапия (30 к.) | E13: 2015-01-16 | F13: 2015-02-15 | G13: 9000 | H13: 2 | I13: 1 | J13: 34 | K13: 21 | L13: 11100
A14: =IF(B14="","",SUBTOTAL(3,B14)*(MAX(A$4:A13)+1)) -> 10 | B14: ФИО 10 | C14: Бухгалтер | D14: ФЭО | E14: 2015-01-16 | F14: 2015-02-16 | G14: 10000 | H14: 2 | I14: 1 | J14: 34 | K14: 22 | L14: 12900
A15: =IF(B15="","",SUBTOTAL(3,B15)*(MAX(A$4:A14)+1)) -> 11 | B15: ФИО 8 | C15: Медицинская сестра перевязочной | D15: Хирургия (с пер.) | E15: 2015-01-16 | F15: 2015-03-14 | G15: 8000 | H15: 3 | I15: 1 | J15: 55 | K15: 39 | L15: 17000
A16: =IF(B16="","",SUBTOTAL(3,B16)*(MAX(A$4:A15)+1)) -> 12 | B16: ФИО 9 | C16: Медицинская сестра палатная (постовая) | D16: Терапия (30 к.) | E16: 2015-01-16 | F16: 2015-03-14 | G16: 9000 | H16: 3 | I16: 1 | J16: 55 | K16: 39 | L16: 19100
A17: =IF(B17="","",SUBTOTAL(3,B17)*(MAX(A$4:A16)+1)) -> 
A18: =IF(B18="","",SUBTOTAL(3,B18)*(MAX(A$4:A17)+1)) -> 
A19: =IF(B19="","",SUBTOTAL(3,B19)*(MAX(A$4:A18)+1)) ->  | C19: =IF(B19="","",INDEX(МАССИВ,MATCH(B19,ФИО,0),3)) ->  | J19: =IF(B19="","",NETWORKDAYS.INTL(EOMONTH(E19,-1)+1,EOMONTH(F19,0),1,ПРАЗДНИКИ)) ->  | K19: =IF(B19="","",NETWORKDAYS.INTL(E19,F19,1,ПРАЗДНИКИ)) ->  | L19: =IF(B19="","",ROUND((G19*H19*I19/J19*K19),-2)) -> 
A20: =IF(B20="","",SUBTOTAL(3,B20)*(MAX(A$4:A19)+1)) -> 
L21: =SUM(L5:L20) -> 164200
A22: СУММА ПРОПИСЬЮ: | C22: =BAHTTEXT(L21) -> หนึ่งแสนหกหมื่นสี่พันสองร้อยบาทถ้วน
A24: ФОРМУЛА (кратко) = (РАСЧЕТНАЯ СУММА * КОЛ-ВО ПОЛНЫХ МЕСЯЦЕВ * ОБЪЕМ РАБОТ) / НОРМУ ДНЕЙ * ФАКТИЧЕСКИ ОТРАБОТАННЫЕ ДНИ
A26: ИТОГОВАЯ ФОРМУЛА В КОЛ. 10 = ЕСЛИ(B5="";"";ОКРУГЛ(((ЕСЛИ(B5="";"";ИНДЕКС(МАССИВ;ПОИСКПОЗ(B5;ФИО;0);9)))*(ЕСЛИ(B5="";"";МЕСЯЦ(F5)-МЕСЯЦ(E5)+1+(ГОД(F5)-ГОД(E5))*12))*G5/(ЕСЛИ(B5="";"";ЧИСТРАБДНИ.МЕЖД(КОНМЕСЯЦА(E5;-1)+1;КОНМЕСЯЦА(F5;0);1;ПРАЗДНИКИ)))*(ЕСЛИ(B5="";"";ЧИСТРАБДНИ.МЕЖД(E5;F5;1;ПРАЗДНИКИ))));-2))
B28: ПОДПИСИ

Sheet по месяцам
L1: Приложение к приказу № от "____" ___________ 2015г.
A3: № п/п | B3: СОТРУДНИК | C3: ДОЛЖНОСТЬ | D3: ОТДЕЛЕНИЕ | E3: ПЕРИОД | G3: РАСЧЕТНАЯ СУММА ЗА 1 полный МЕСЯЦ | H3: КОЛ-ВО МЕСЯЦЕВ | I3: ОБЪЕМ РАБОТЫ | J3: ПО ГРАФИКУ | K3: ОТРАБОТАНО | L3: СУММА
B4: 2 | C4: 3 | E4: 4 | F4: 5 | G4: 6 | I4: 7 | J4: 8 | K4: 9 | L4: 10
A5: =IF(B5="","",SUBTOTAL(3,B5)*(MAX(A$4:A4)+1)) -> 1 | B5: ФИО 1 | C5: =IF(B5="","",INDEX(МАССИВ,MATCH(B5,ФИО,0),3)) -> Медицинская сестра | D5: =IF(B5="","",INDEX(МАССИВ,MATCH(B5,ФИО,0),2)) -> Приемное | E5: 2015-01-01 | F5: 2015-01-31 | G5: =IF(B5="","",INDEX(МАССИВ,MATCH(B5,ФИО,0),9)) -> 10000 | H5: =IF(B5="","",MONTH(F5)-MONTH(E5)+1+(YEAR(F5)-YEAR(E5))*12) -> 1 | I5: 1 | J5: =IF(B5="","",NETWORKDAYS.INTL(EOMONTH(E5,-1)+1,EOMONTH(F5,0),1,ПРАЗДНИКИ)) -> 15 | K5: =IF(B5="","",NETWORKDAYS.INTL(E5,F5,1,ПРАЗДНИКИ)) -> 15 | L5: =IF(B5="","",((((G5*H5)*I5)/J5)*K5)) -> 10000 | N5: =G5*H5 -> 10000 | O5: =N5*I5 -> 10000 | P5: =O5/J5 -> 666.6666667 | Q5: =P5*K5 -> 10000
A6: =IF(B6="","",SUBTOTAL(3,B6)*(MAX(A$4:A5)+1)) -> 2 | B6: ФИО 1 | C6: Медицинская сестра | D6: Приемное | E6: 2015-02-01 | F6: 2015-02-28 | G6: 10000 | H6: =IF(B6="","",MONTH(F6)-MONTH(E6)+1+(YEAR(F6)-YEAR(E6))*12) -> 1 | I6: 1 | J6: 19 | K6: 19 | L6: =IF(B6="","",((((G6*H6)*I6)/J6)*K6)) -> 10000 | N6: 10000 | O6: 10000 | P6: =O6/J6 -> 526.3157895 | Q6: 10000
A7: =IF(B7="","",SUBTOTAL(3,B7)*(MAX(A$4:A6)+1)) -> 3 | B7: ФИО 1 | C7: Медицинская сестра | D7: Приемное | E7: 2015-03-01 | F7: 2015-03-31 | G7: 10000 | H7: 1 | I7: 1 | J7: 21 | K7: 21 | L7: =IF(B7="","",((((G7*H7)*I7)/J7)*K7)) -> 10000 | N7: =G7*H7 -> 10000 | O7: =N7*I7 -> 10000 | P7: =O7/J7 -> 476.1904762 | Q7: =P7*K7 -> 10000
A8: =IF(B8="","",SUBTOTAL(3,B8)*(MAX(A$4:A7)+1)) -> 4 | B8: ФИО 1 | C8: Медицинская сестра | D8: Приемное | E8: 2015-01-01 | F8: 2015-03-31 | G8: 10000 | H8: 3 | I8: 1 | J8: 55 | K8: 55 | L8: 30000 | N8: =G8*H8 -> 30000 | O8: =N8*I8 -> 30000 | P8: =O8/J8 -> 545.4545455 | Q8: =P8*K8 -> 30000
A9: =IF(B9="","",SUBTOTAL(3,B9)*(MAX(A$4:A8)+1)) ->  | I9: 1 | L9: =IF(B9="","",ROUND((G9*H9*I9/J9*K9),-2)) -> 
A10: =IF(B10="","",SUBTOTAL(3,B10)*(MAX(A$4:A9)+1)) ->  | O10: 2015-01-16
A11: =IF(B11="","",SUBTOTAL(3,B11)*(MAX(A$4:A10)+1)) ->  | O11: 2015-03-31
A12: =IF(B12="","",SUBTOTAL(3,B12)*(MAX(A$4:A11)+1)) ->  | N12: месяц | O12: =MONTH(O10) -> 1
A13: =IF(B13="","",SUBTOTAL(3,B13)*(MAX(A$4:A12)+1)) ->  | N13: год | O13: =YEAR(O10) -> 2015
A14: =IF(B14="","",SUBTOTAL(3,B14)*(MAX(A$4:A13)+1)) ->  | O14: =DAY(O10) -> 16
A15: =IF(B15="","",SUBTOTAL(3,B15)*(MAX(A$4:A14)+1)) ->  | O15: =WEEKDAY(O10,3) -> 4
A16: =IF(B16="","",SUBTOTAL(3,B16)*(MAX(A$4:A15)+1)) -> 
A17: =IF(B17="","",SUBTOTAL(3,B17)*(MAX(A$4:A16)+1)) ->  | O17: 0002
A18: =IF(B18="","",SUBTOTAL(3,B18)*(MAX(A$4:A17)+1)) -> 
A19: =IF(B19="","",SUBTOTAL(3,B19)*(MAX(A$4:A18)+1)) -> 
A20: =IF(B20="","",SUBTOTAL(3,B20)*(MAX(A$4:A19)+1)) ->  | O20: =ROMAN(O15) -> IV | P20: римские цифры
L21: =SUM(L5:L20) -> 60000
A22: СУММА ПРОПИСЬЮ: | O22: 1111111111 | P22: через проверку данных (тип данных) устанавливаем ограничение длины
O24: =UPPER(P20) -> РИМСКИЕ ЦИФРЫ | P24: прописные
B25: ПОДПИСИ

Sheet Лист1

Sheet Лист2

Sheet Лист3
